Cogmind - Beta 14 @@@ ROGUE MODE // 2024.10.23 @ 04:34:28 Player: mobiletrisiak Result: Destroyed by 25-0EN(R) with Subdweller Laser Performance ------------- Evolutions (0) 0 Regions Visited (3) 600 Robots Destroyed (32) 160 Value Destroyed (714) 714 Prototype IDs (13) 260 Alien Tech Used (0) 0 Bonus (0) 0 TOTAL SCORE: 1734 Bonus ------- None Cogmind --------- Core Integrity 0/250 Matter 290/300 Energy 70/100 System Corruption 7% Temperature Cool (6) Movement Core (500) Ox9 Location -10/Subcaves Parts ------- > --- POWER (1) -------- (None) > --- PROPULSION (2) --- (None) > --- UTILITY (2) ------ Large Storage Unit > --- WEAPON (2) ------- Subdweller Beam Cannon Flail (fused) > --- INVENTORY (15) --- Cargo Legs High-capacity Matter Pod (200) Structural Scanner Experimental Sensor Array Improved Terrain Scanner Scrap Shield EM Pulse Gun Assault Rifle Subdweller Machine Gun Light Cannon Grenade Launcher Grenade Launcher Peak State ------------ > --- POWER ------------ Light Ion Engine > --- PROPULSION ------- Aluminum Leg Aluminum Leg > --- UTILITY ---------- Large Storage Unit Seismic Detector > --- WEAPON ----------- Flail Flail > --- INVENTORY -------- Aluminum Leg Cargo Legs High-capacity Matter Pod Structural Scanner Experimental Sensor Array Improved Terrain Scanner Scrap Shield EM Pulse Gun Subdweller Beam Cannon Assault Rifle Light Cannon Grenade Launcher Grenade Launcher [Rating: 13] Favorites ----------- Power Ion Engine Engine Ion Engine Propulsion Aluminum Leg Leg Aluminum Leg Wheel Subdweller Monowheel Utility Large Storage Unit Device Structural Scanner Storage Large Storage Unit Weapon Flail Energy Gun EM Pulse Gun Energy Cannon Subdweller Beam Cannon Ballistic Gun Assault Rifle Launcher Grenade Launcher Impact Weapon Flail Build | -11 -10 -10 -10 ------- Run | Yrd Mat Min Sub Slots Evolved . | . . . . Power . | . . . . Propulsion . | . . . . Utility . | . . . . Weapon . | . . . . Parts Attached 25 | 6 12 3 4 Power 3 | 1 1 . 1 Engine 3 | 1 1 . 1 Core . | . . . . Reactor . | . . . . Propulsion 6 | 2 2 . 2 Treads . | . . . . Leg 5 | 2 2 . 1 Wheel 1 | . . . 1 Hover . | . . . . Flight . | . . . . Utility 4 | 1 2 1 . Device 3 | 1 1 1 . Storage 1 | . 1 . . Processor . | . . . . Hackware . | . . . . Protection . | . . . . Artifact . | . . . . Weapon 12 | 2 7 2 1 Energy Gun 2 | 1 1 . . Energy Cannon 1 | . . . 1 Ballistic Gun 2 | 1 1 . . Ballistic Cannon . | . . . . Launcher 3 | . 2 1 . Special Weapon . | . . . . Impact Weapon 4 | . 3 1 . Slashing Weapon . | . . . . Piercing Weapon . | . . . . Special Melee Weapon . | . . . . Unidentified Prototypes . | . . . . Corrupted Parts 1 | . . . 1 System Corruption 5 | . . . 5 Parts Lost 10 | . 2 1 7 Power 3 | . 1 1 1 Propulsion 4 | . . . 4 Utility 1 | . . . 1 Weapon 2 | . 1 . 1 Highest Loss Streak 5 | . 2 1 5 To Critical Strikes . | . . . . Average Slot Usage (%) 90 | . 95 89 85 Engine 9 | . 13 4 9 Leg 25 | . 26 28 21 Device 15 | . 18 14 10 Storage 11 | . 6 14 14 Energy Gun 4 | . 12 . . Ballistic Gun 3 | . 9 . . Impact Weapon 19 | . 5 27 27 Peak Build Rating 13 | 6 9 10 13 Average Rating 8 | 3 7 8 10 On Entrance 6 | . 6 9 10 Naked Turns . | . . . . Heaviest Build 30 | 8 30 30 28 Greatest Support 20 | 20 20 20 20 Greatest Overweight (x) 7 | 1 1 1 7 Average Overweight (x) . | . . 1 1 Largest Inventory Capacity 15 | 5 15 15 15 Average Capacity 12 | 5 9 15 15 Most Carried 15 | 5 7 12 15 Average Carried 7 | 2 4 8 13 Final Capacity 15 | 5 15 15 15 Final Carried 14 | 2 6 12 14 Class Distribution -------------------- 88% | Mutant 11% | Scavenger-Mutant Dominant Class ---------------- Mutant | -10/Materials Mutant | -10/Mines Mutant | -10/Subcaves Resources | -11 -10 -10 -10 ----------- Run | Yrd Mat Min Sub Matter Collected 804 | 72 251 312 169 Remotely . | . . . . Salvage Created 841 | 48 395 170 228 Parts 51 | 4 28 8 11 Haulers Intercepted . | . . . . Recyclers Shooed . | . . . . Parts Field Recycled . | . . . . Retrieved Matter . | . . . . Parts Self-Destructed 5 | . . . 5 Prevented . | . . . . Kills | -11 -10 -10 -10 ------- Run | Yrd Mat Min Sub Combat Hostiles Destroyed 25 | 1 12 6 6 Melee 4 | . . 1 3 Guns 6 | 1 5 . . AOE 10 | . 7 3 . Classes Destroyed 6 | 1 3 1 1 Builder 3 | . 2 1 . Tunneler 3 | . . 3 . Recycler 1 | . 1 . . Swarmer 10 | . 6 4 . Grunt 9 | 1 6 2 . Subdweller 6 | . . . 6 Best Kill Streak 6 | 1 4 3 6 Combat Bots Only 6 | 1 3 3 6 Max Kills in Single Turn 2 | 1 2 2 1 Gunslinging . | . . . . Exploded 2 | . 2 2 . Melee 1 | . . 1 1 Uniques/NPCs Destroyed . | . . . . Combat | -11 -10 -10 -10 -------- Run | Yrd Mat Min Sub Hostile Shots Fired 113 | 3 53 19 38 Missed 27 | . 15 2 10 Damage Taken 1323 | 32 451 195 645 Core 266 | 20 55 46 145 Absorbed by Shields . | . . . . Regen/Repaired (Parts) 165 | . 165 . . Core Remaining (%) 92 | 92 . . . Volleys Fired 44 | 4 36 3 1 Largest 2 | 1 2 1 1 Hottest 80 | 20 80 30 80 Shots Fired 76 | 4 68 3 1 Gun 67 | 4 63 . . Cannon 1 | . . . 1 Launcher 8 | . 5 3 . Special . | . . . . Kinetic 29 | 4 25 . . Thermal 1 | . . . 1 Explosive 8 | . 5 3 . Electromagnetic 38 | . 38 . . Robot Hit Streak 5 | 3 5 1 2 Robot Miss Streak 3 | 1 3 1 . Penetration Max . | . . . . Secondary Targets . | . . . . Shots Hit Robots 75 | 3 36 13 23 Core Hits 30 | 2 18 6 4 Critical Kills . | . . . . Critical Parts Destroyed 3 | . . 3 . Critical Strikes 6 | . 2 3 1 Corrupt 2 | . 2 . . Smash 4 | . . 3 1 Melee Attacks 59 | . 1 14 44 Impact 59 | . 1 14 44 Slashing . | . . . . Piercing . | . . . . Sneak Attacks 6 | . . 6 . Combat Hostiles . | . . . . Follow-up Attacks 6 | . . 2 4 Damage Inflicted 2549 | 36 886 899 728 Guns 487 | 36 451 . . Cannons 26 | . . . 26 Explosions 605 | . 435 170 . Melee 1431 | . . 729 702 Ramming . | . . . . Kinetic 163 | 36 127 . . Thermal 117 | . 91 . 26 Explosive 514 | . 344 170 . Electromagnetic 324 | . 324 . . Impact 1431 | . . 729 702 Slashing . | . . . . Piercing . | . . . . Highest Corruption 7 | . 2 2 7 Average Corruption 2 | . 1 2 3 Corruption Purged . | . . . . Corruption Blocked . | . . . . Effects 21 | . 5 8 8 Message Errors 4 | . . . 4 Matter Fused 5 | . 1 3 1 Heat Flow Errors 2 | . 2 . . Energy Discharges 4 | . 1 2 1 Parts Fused 2 | . . . 2 Data Loss (minor) 2 | . . 2 . Misfires 1 | . 1 . . Alerts 1 | . . 1 . Overload Shots . | . . . . Overflow Damage 322 | . 24 280 18 Projectiles . | . . . . Explosions 24 | . 24 . . Melee 298 | . . 280 18 Knockbacks 17 | . . 6 11 Impact 14 | . . 6 8 Kinetic . | . . . . Secondary 3 | . . . 3 Self-Inflicted Damage 59 | . 51 8 . Shots 3 | . 2 1 . Rammed . | . . . . Targets Rammed . | . . . . Kicked . | . . . . Crushed . | . . . . Highest Temperature 235 | . 235 2 . Average Temperature 71 | . 74 2 . Received Heat Transfer 396 | 18 150 78 150 Siege Activations . | . . . . Robots Corrupted 9 | . 1 5 3 Combat Hostiles 5 | . . 2 3 Parts Fried 16 | . 3 10 3 Impact Corruptions 16 | . . 13 3 Robots Melted . | . . . . Combat Hostiles . | . . . . Parts Melted . | . . . . Heat Transferred 187 | . 150 . 37 Parts Sabotaged . | . . . . Parts Stolen . | . . . . Parts Stripped . | . . . . Power Chain Reactions 2 | . 2 . . Alert | -11 -10 -10 -10 ------- Run | Yrd Mat Min Sub Peak Influence 325 | 20 325 171 . Initial 101 | . 13 101 . Average 126 | 12 193 81 . Maximum Alert Level 1 | . 1 . . Low Security (%) 80 | 100 56 100 . Level 1 19 | . 43 . . Level 2 . | . . . . Level 3 . | . . . . Level 4 . | . . . . Level 5 . | . . . . High Security . | . . . . Max Security . | . . . . Squads Dispatched 2 | . 2 . . Investigation 1 | . 1 . . Extermination . | . . . . Reinforcement 1 | . 1 . . Assault . | . . . . Garrison . | . . . . Intercept . | . . . . Searches Triggered . | . . . . Construction Impeded . | . . . . Haulers Reinforced . | . . . . Active Scanning Responses . | . . . . Cargo Convoy Interrupts . | . . . . Stealth | -11 -10 -10 -10 --------- Run | Yrd Mat Min Sub Distress Signals 1 | . 1 . . Communications Jammed . | . . . . Distress Signals . | . . . . Times Spotted 38 | 1 24 6 7 Peak Tracking Total 5 | 1 4 3 5 Tactical Retreats 2 | . 2 . . Traps | -11 -10 -10 -10 ------- Run | Yrd Mat Min Sub Traps Triggered 3 | . 2 . 1 Indirectly . | . . . . Trap Hack Attempts . | . . . . Triggered . | . . . . Disarmed . | . . . . Reprogrammed . | . . . . Reused . | . . . . Traps Extracted . | . . . . Installed . | . . . . Triggered 1 | . 1 . . Machines | -11 -10 -10 -10 ---------- Run | Yrd Mat Min Sub Machines Disabled 2 | . 1 . 1 Max in Single Turn 1 | . 1 . 1 Machines Repaired . | . . . . Machines Dismantled . | . . . . Machines Sabotaged . | . . . . Overloaded Fab Kills . | . . . . Hacking | -11 -10 -10 -10 --------- Run | Yrd Mat Min Sub Machines Accessed 7 | . 6 . 1 Terminals 5 | . 5 . . Fabricators . | . . . . Repair Stations 1 | . 1 . . Recycling Units . | . . . . Scanalyzers . | . . . . Garrison Access . | . . . . Total Hacks 35 | . 26 . 9 Successful 25 | . 16 . 9 Failed 10 | . 10 . . Catastrophic 1 | . 1 . . Database Lockouts . | . . . . Manual . | . . . . Terminals 21 | . 21 . . Fabricators . | . . . . Repair Stations 5 | . 5 . . Recycling Units . | . . . . Scanalyzers . | . . . . Garrison Access . | . . . . Terminal Hacks 21 | . 12 . 9 Record 14 | . 6 . 8 Prototype ID Bank 1 | . 1 . . Branch Access Points 1 | . 1 . . Emergency Access Points 1 | . 1 . . Locate Traps 2 | . 2 . . Hauler Manifests 1 | . 1 . . Derelict Proto ID Bank 1 | . . . 1 Fabricator Hacks . | . . . . Repair Station Hacks 4 | . 4 . . Scan Component 2 | . 2 . . Repair 2 | . 2 . . Recycling Unit Hacks . | . . . . Scanalyzer . | . . . . Garrison Access Hacks . | . . . . Unauthorized Hacks . | . . . . Terminals . | . . . . Fabricators . | . . . . Repair Stations . | . . . . Recycling Units . | . . . . Scanalyzers . | . . . . Garrison Access . | . . . . Data Cores Recovered . | . . . . Used . | . . . . Hacking Detections 6 | . 6 . . Full Trace Events 2 | . 2 . . Feedback Events . | . . . . Feedback Blocked . | . . . . Robot Schematics Acquired . | . . . . Robots Built . | . . . . Authchips . | . . . . Time . | . . . . Total Robot Build Rating . | . . . . Part Schematics Acquired . | . . . . Parts Built . | . . . . Authchips . | . . . . Time . | . . . . Total Part Build Rating . | . . . . Parts Repaired 2 | . 2 . . Time 52 | . 52 . . Parts Recycled . | . . . . Recycled Matter . | . . . . Retrieved Matter . | . . . . Retrieved Components . | . . . . Parts Scanalyzed . | . . . . Part Schematics Acquired . | . . . . Parts Damaged . | . . . . Bothacking | -11 -10 -10 -10 ------------ Run | Yrd Mat Min Sub Used RIF Installer . | . . . . Robots Hacked . | . . . . Non-combat . | . . . . Combat . | . . . . Robot Hacks Applied . | . . . . Relay Couplers Released . | . . . . Fabnet Peak Effective % . | . . . . Robots Rewired . | . . . . Allies Hacked . | . . . . Hacks Repelled . | . . . . Allies | -11 -10 -10 -10 -------- Run | Yrd Mat Min Sub Total Allies . | . . . . Largest Group . | . . . . Highest-Rated Group . | . . . . Highest-Rated Ally . | . . . . Total Orders . | . . . . Ally Attacks . | . . . . Total Damage . | . . . . Kills . | . . . . Allies Corrupted . | . . . . Allies Melted . | . . . . Intel | -11 -10 -10 -10 ------- Run | Yrd Mat Min Sub Robot Analysis Total . | . . . . Derelict Logs Recovered 1 | . . 1 . Drone Launches . | . . . . Drone Recoveries . | . . . . Exploration | -11 -10 -10 -10 ------------- Run | Yrd Mat Min Sub Turns Passed 1963 | 117 687 710 449 Spaces Moved 944 | 104 321 349 170 Core 59 | 51 . . 8 Treads . | . . . . Legs 878 | 53 321 349 155 Wheels 7 | . . . 7 Hover . | . . . . Flight . | . . . . Fastest Speed 50 | 50 120 190 120 Average Speed 166 | 92 148 190 197 Slowest Speed 400 | 120 190 190 400 Overloaded Moves . | . . . . Propulsion Burnouts . | . . . . Robots Hopped . | . . . . Cave-ins Triggered . | . . . . Exploration Rate (%) 43 | 6 68 89 9 Regions Visited 3 Branch Regions 2 Pre-discovered Areas . | . . . . Known Exits Taken 1 | . 1 . . Unknown Exits Taken 2 | 1 . 1 . Scrap Searched 1 | . . 1 . Spaces Dug 1 | . 1 . . Terrain Destroyed 54 | . 39 15 . Melee 1 | . 1 . . Projectile . | . . . . AOE 53 | . 38 15 . Terrain Rammed . | . . . . Walls Destroyed . | . . . . Machines Disabled . | . . . . Actions | -11 -10 -10 -10 --------- Run | Yrd Mat Min Sub Total 1181 | 121 461 373 226 Wait 91 | . 80 1 10 Move 941 | 103 320 348 170 Hop . | . . . . Pick Up 29 | 8 10 6 5 Fast Attach . | . . . . Attach 16 | 6 6 . 4 Detach 1 | . 1 . . Swap 9 | . 6 3 . Drop 2 | . 1 . 1 Fire 44 | 4 36 3 1 Melee 48 | . 1 12 35 Ram . | . . . . Kick . | . . . . Crush . | . . . . Escape Stasis . | . . . . Rewire . | . . . . Trap . | . . . . Miscellaneous . | . . . . Route ------- -11/Scrapyard -10/Materials (discovered 2 exits: [*Mat] / *Min) -10/Mines (discovered 3 exits: [*Mat x2] / *Sub) -10/Subcaves History --------- Turn | Location | Event 2 | -11/Scrapyard | Met Revision 17 31 | -11/Scrapyard | Discovered new exit (range 8) 118 | -11/Scrapyard | Entered Materials 300 | -10/Materials | Identified exit to Mines 538 | -10/Materials | Discovered new exit (range 13) 579 | -10/Materials | Repaired Aluminum Leg 606 | -10/Materials | Repaired Aluminum Leg 766 | -10/Materials | Build established: Mutant 805 | -10/Materials | Entered Mines 924 | -10/Mines | Learned Materials security intel 970 | -10/Mines | Discovered new exit (range 10) 1236 | -10/Mines | Found a damaged Exp. Sensor Array with a note attached 1240 | -10/Mines | Found Prototype Device 1384 | -10/Mines | Discovered new exit (range 3) 1511 | -10/Mines | Discovered new exit (range 3) 1515 | -10/Mines | Entered Subcaves 1516 | -10/Subcaves | Shifting Twisted Machinery released Sub. Beam Cannon 1528 | -10/Subcaves | Shifting Twisted Machinery released Sub. Monowheel 1692 | -10/Subcaves | Visited 4L-MR0's lab 1800 | -10/Subcaves | Found Cargo Legs 1818 | -10/Subcaves | Ambushed by swarm of Subdwellers 1820 | -10/Subcaves | Ambushed by Subdwellers from Twisted Machinery 1870 | -10/Subcaves | Core integrity fell below 50% 1898 | -10/Subcaves | Lost 5 parts (1p3n1u) 1944 | -10/Subcaves | Core integrity fell below 20% 1964 | -10/Subcaves | Destroyed by 25-0EN(R) with Subdweller Laser Last Messages --------------- Sub. Optics fried. Sub. Power Source fried. JX-WTL(R) knocked back. Flail follow-up attack on JX-WTL(R). JX-WTL(R) destroyed. Acquired 76 matter. Acquired 25 matter. Acquired Sub. Monowheel. Acquired 10 matter. Subatomizers dissect the Sub. Optics. 25-0EN(R) knocked back. Subatomizers dissect the Sub. Optics. Sub. Monowheel destroyed. System corrupted: Energy discharge (-38). Flail destroyed. Subatomizers dissect the Sub. Optics. YRSGCI=G26YCN Q LULQ/ Subatomizers dissect the Sub. Optics. Acquired Sub. Machine Gun. [Achievement: First Step to Greatness] Map ----- +----------------------------------------------------+ | ????????????????????????????????? | | ????????????????????????????????? | | ????????????????????????????????? | | ????????????????????????????????? | | ????????????????????????????????? | | ????????????????????????????????? | | ????????????????????????????????? | | ????????????????????????????????? | | ????????????????????????????????? | | ????????????????????????????????? | | ????????????????????????????????? | | ????????????????????????????????? | | ????????????????????????????????? | | ????????????????????????????????? | | ????????????????????????????????? | | ?????????????????????????? ????? | | ???????????????##???????? #????? | | ??????????????## ###????? ##???? | | ??????????????? ##???? %#???? | | ??????????????? #??## #???? | | ???????????????# % ### ????? | | ????#########??#% ## #????? | | ???## <<<<< ###? % ## % #????? | | ???# < *<< < ### ## #?????? | | ???# [*[&& ## ## #?????? | | ???#<&!!@% ## #?# ###???% | | ???###< #< " # ### ## | | ????###R#####" # | | ????#"!&%#?# #" | | ????#&%*"#?# | | ????# ""#?# ### | | ????# X"#?# # " ##???? | | ????# ""#?#####" ##????? | | ????#!#""#?????# ##???### | | ????# #""#?????## ##???? # | | ????######?????## #????# | | ???????????????# ##?## | | ???????????????## ## | | ????????????????# | | ????????????????# %% | | ????????????????# # #### | | ????????????????## ###### % | | ????????????????## #??# ## | | ????????????????# ##??? # " | | ????????????????# ###### # " | | ????????????????## # #? " | | ????????????????# ## " | | ????????????????# ## " | | ???????????????####### | | ??????????????## #?### """ | +----------------------------------------------------+ Best States ------------- Heat Dissipation 35 Energy Generation 10 Energy Capacity 250 Matter Stores 300 Matter Capacity 300 Sight Range 16 Terrain Scan Density 10 Evasion (%) 55 Item Schematics ----------------- None Robot Schematics ------------------ None Fabricated ------------ Nothing Alien Tech Used ----------------- None Achievements -------------- First Step to Greatness Librarian Part-time Mechanic Power Corrupts Shopping List Uninvited Guest Challenges ------------ None Game ------ Seed GhostCatalystDeconstructor Manual? 0 Play Time 00:33:17 Cumulative 0.5 hours Start 2024.10.19 @ 00:58:04 End 2024.10.23 @ 04:34:28 Sessions 13 Manual Loads 0 Difficulty Rogue Special Mode None Game No. 1 Rogue 1 Adventurer 0 Explorer 0 Win Type - Total 0 Types 0/0/0/0/0/0/0/0/0 Lore% 1 Gallery% 1 Achievement% 2 Wizard Run 0 Options --------- Layout 1 ASCII 0 Keyboard 0 Movement Mouse Keybinds 0 Fullscreen 1 Font 16/SmallcapsGlow Map View 50x35 Zoom Use 13% Tactical HUD 0 Map Filters NONE Filters NONE Steam 0 RUN: 617adb2d-5851-48e3-b618-ef9553578bd1